[Event "Titled Tuesday Blitz July 18 Late 2023"]
[White "Estrada Nieto, Julian"]
[Black "Rastbod, Ali"]
[WhiteFideId "5101018"]
[BlackFideId "12567477"]
[WhiteElo "2540"]
[BlackElo "2695"]
[Result "1-0"]
[Round "7"]
[TimeControl "180+2"]
[Date "2023.07.18"]
[WhiteClock "0:00:05"]
[BlackClock "0:00:00"]
[Board "44"]

1. e4 {[%clk 0:03:00]}  e5 {[%clk 0:02:41]} 2. Nf3 {[%clk 0:03:00]}  Nc6 {[%clk 0:02:41]} 3. Bb5 {[%clk 0:03:01]}  a6 {[%clk 0:02:41]} 4. Ba4 {[%clk 0:02:59]}  Nge7 {[%clk 0:02:40]} 5. Nc3 {[%clk 0:02:58]}  g6 {[%clk 0:02:31]} 6. d4 {[%clk 0:02:57]}  exd4 {[%clk 0:02:31]} 7. Nd5 {[%clk 0:02:57]}  Bg7 {[%clk 0:02:13]} 8. Bg5 {[%clk 0:02:57]}  b5 {[%clk 0:02:13]} 9. Bb3 {[%clk 0:02:51]}  h6 {[%clk 0:02:08]} 10. Bf6 {[%clk 0:02:51]}  O-O {[%clk 0:02:08]} 11. Nxd4 {[%clk 0:02:38]}  Bxf6 {[%clk 0:02:03]} 12. Nxf6+ {[%clk 0:02:37]}  Kg7 {[%clk 0:02:03]} 13. Nd5 {[%clk 0:02:26]}  Na5 {[%clk 0:01:45]} 14. O-O {[%clk 0:02:12]}  Bb7 {[%clk 0:01:28]} 15. Qd2 {[%clk 0:01:51]}  Nxb3 {[%clk 0:01:22]} 16. axb3 {[%clk 0:01:51]}  Nxd5 {[%clk 0:01:05]} 17. exd5 {[%clk 0:01:51]}  Qf6 {[%clk 0:00:47]} 18. c4 {[%clk 0:01:48]}  c5 {[%clk 0:00:47]} 19. Ne2 {[%clk 0:01:40]}  d6 {[%clk 0:00:41]} 20. Ng3 {[%clk 0:01:39]}  Rfe8 {[%clk 0:00:35]} 21. Rfe1 {[%clk 0:01:39]}  Rxe1+ {[%clk 0:00:35]} 22. Rxe1 {[%clk 0:01:38]}  Rd8 {[%clk 0:00:17]} 23. Ne4 {[%clk 0:01:28]}  Qd4 {[%clk 0:00:16]} 24. Qxd4+ {[%clk 0:01:21]}  cxd4 {[%clk 0:00:17]} 25. Rd1 {[%clk 0:01:20]}  f5 {[%clk 0:00:10]} 26. Nd2 {[%clk 0:01:08]}  Rc8 {[%clk 0:00:06]} 27. Re1 {[%clk 0:00:48]}  Kf7 {[%clk 0:00:06]} 28. h4 {[%clk 0:00:43]}  a5 {[%clk 0:00:06]} 29. Re6 {[%clk 0:00:42]}  a4 {[%clk 0:00:06]} 30. Rxd6 {[%clk 0:00:40]}  axb3 {[%clk 0:00:03]} 31. Rd7+ {[%clk 0:00:35]}  Kf6 {[%clk 0:00:03]} 32. Rxb7 {[%clk 0:00:34]}  bxc4 {[%clk 0:00:04]} 33. Rb6+ {[%clk 0:00:30]}  Ke5 {[%clk 0:00:04]} 34. Nxc4+ {[%clk 0:00:22]}  Rxc4 {[%clk 0:00:04]} 35. Rxb3 {[%clk 0:00:20]}  Kxd5 {[%clk 0:00:04]} 36. Rb6 {[%clk 0:00:18]}  Rc1+ {[%clk 0:00:02]} 37. Kh2 {[%clk 0:00:18]}  Rc2 {[%clk 0:00:03]} 38. Rxg6 {[%clk 0:00:16]}  Rxf2 {[%clk 0:00:04]} 39. Rxh6 {[%clk 0:00:15]}  Rxb2 {[%clk 0:00:04]} 40. Rh8 {[%clk 0:00:15]}  Ke4 {[%clk 0:00:05]} 41. h5 {[%clk 0:00:15]}  Rb6 {[%clk 0:00:04]} 42. Kg3 {[%clk 0:00:13]}  f4+ {[%clk 0:00:03]} 43. Kg4 {[%clk 0:00:12]}  Rb2 {[%clk 0:00:04]} 44. Re8+ {[%clk 0:00:11]}  Kd5 {[%clk 0:00:04]} 45. Kf3 {[%clk 0:00:10]}  d3 {[%clk 0:00:05]} 46. Rd8+ {[%clk 0:00:10]}  Kc4 {[%clk 0:00:05]} 47. h6 {[%clk 0:00:11]}  Rb7 {[%clk 0:00:04]} 48. Kxf4 {[%clk 0:00:10]}  Rh7 {[%clk 0:00:05]} 49. Kg5 {[%clk 0:00:10]}  Kc3 {[%clk 0:00:03]} 50. g4 {[%clk 0:00:10]}  d2 {[%clk 0:00:03]} 51. Kg6 {[%clk 0:00:10]}  Rc7 {[%clk 0:00:04]} 52. Rxd2 {[%clk 0:00:09]}  Kxd2 {[%clk 0:00:04]} 53. g5 {[%clk 0:00:09]}  Ke3 {[%clk 0:00:04]} 54. h7 {[%clk 0:00:09]}  Rc8 {[%clk 0:00:04]} 55. Kg7 {[%clk 0:00:10]}  Kf4 {[%clk 0:00:05]} 56. g6 {[%clk 0:00:10]}  Kg5 {[%clk 0:00:04]} 57. Kf7 {[%clk 0:00:09]}  Rc7+ {[%clk 0:00:03]} 58. Ke6 {[%clk 0:00:07]}  Rc6+ {[%clk 0:00:02]} 59. Kd5 {[%clk 0:00:07]}  Rxg6 {[%clk 0:00:02]} 60. h8=Q {[%clk 0:00:07]}  Rf6 {[%clk 0:00:02]} 61. Qg7+ {[%clk 0:00:07]}  Rg6 {[%clk 0:00:02]} 62. Qe5+ {[%clk 0:00:07]}  Kg4 {[%clk 0:00:02]} 63. Ke4 {[%clk 0:00:07]}  Rg5 {[%clk 0:00:02]} 64. Qf6 {[%clk 0:00:07]}  Rh5 {[%clk 0:00:01]} 65. Qf3+ {[%clk 0:00:07]}  Kg5 {[%clk 0:00:01]} 66. Qf4+ {[%clk 0:00:05]}  Kg6 {[%clk 0:00:02]} 67. Qg4+ {[%clk 0:00:05]}  Rg5 {[%clk 0:00:03]} 68. Qe6+ {[%clk 0:00:05]}  Kg7 {[%clk 0:00:03]} 69. Kf4 {[%clk 0:00:05]}  Rg6 {[%clk 0:00:04]} 70. Qe7+ {[%clk 0:00:06]}  Kg8 {[%clk 0:00:04]} 71. Kf5 {[%clk 0:00:06]}  Rg7 {[%clk 0:00:05]} 72. Qe8+ {[%clk 0:00:06]}  Kh7 {[%clk 0:00:05]} 73. Qh5+ {[%clk 0:00:06]}  Kg8 {[%clk 0:00:06]} 74. Qe8+ {[%clk 0:00:06]}  Kh7 {[%clk 0:00:06]} 75. Kf6 {[%clk 0:00:06]}  Rg1 {[%clk 0:00:05]} 76. Qh5+ {[%clk 0:00:06]}  Kg8 {[%clk 0:00:05]} 77. Qd5+ {[%clk 0:00:07]}  Kh7 {[%clk 0:00:06]} 78. Qe4+ {[%clk 0:00:06]}  Kg8 {[%clk 0:00:06]} 79. Qe8+ {[%clk 0:00:06]}  Kh7 {[%clk 0:00:07]} 80. Qh5+ {[%clk 0:00:07]}  Kg8 {[%clk 0:00:07]} 81. Qd5+ {[%clk 0:00:06]}  Kh7 {[%clk 0:00:08]} 82. Qd4 {[%clk 0:00:05]}  Rg6+ {[%clk 0:00:07]} 83. Kf5 {[%clk 0:00:05]}  Rg7 {[%clk 0:00:06]} 84. Qh4+ {[%clk 0:00:04]}  Kg8 {[%clk 0:00:07]} 85. Qd8+ {[%clk 0:00:04]}  Kh7 {[%clk 0:00:07]} 86. Qd5 {[%clk 0:00:05]}  Rg6 {[%clk 0:00:05]} 87. Qf7+ {[%clk 0:00:04]}  Rg7 {[%clk 0:00:05]} 88. Qh5+ {[%clk 0:00:04]}  Kg8 {[%clk 0:00:06]} 89. Kf6 {[%clk 0:00:05]}  Ra7 {[%clk 0:00:05]} 90. Qe8+ {[%clk 0:00:04]}  Kh7 {[%clk 0:00:05]} 91. Qe4+ {[%clk 0:00:04]}  Kg8 {[%clk 0:00:06]} 92. Qc4+ {[%clk 0:00:03]}  Kh7 {[%clk 0:00:06]} 93. Qd3+ {[%clk 0:00:03]}  Kg8 {[%clk 0:00:06]} 94. Qg3+ {[%clk 0:00:03]}  Kh7 {[%clk 0:00:06]} 95. Qh2+ {[%clk 0:00:03]}  Kg8 {[%clk 0:00:07]} 96. Qb8+ {[%clk 0:00:03]}  Kh7 {[%clk 0:00:05]} 97. Qxa7+ {[%clk 0:00:04]}  Kh6 {[%clk 0:00:00]} 98. Qg7+ {[%clk 0:00:05]} 1-0


[Site "https://www.chess.com"]

[Event "Titled Tuesday Blitz July 18 Late 2023"]
[White "ArtemDyachuk"]
[Black "Alex_Sahakyan2006"]
[WhiteElo "2536"]
[BlackElo "2669"]
[Result "0-1"]
[Round "7"]
[TimeControl "180+2"]
[Date "2023.07.18"]
[WhiteClock "0:00:00"]
[BlackClock "0:00:02"]
[Board "46"]

1. e4 {[%clk 0:03:00]}  e5 {[%clk 0:02:59]} 2. Nf3 {[%clk 0:02:59]}  Nc6 {[%clk 0:02:59]} 3. Bc4 {[%clk 0:02:58]}  Nf6 {[%clk 0:02:59]} 4. d3 {[%clk 0:02:51]}  h6 {[%clk 0:03:00]} 5. O-O {[%clk 0:02:50]}  d6 {[%clk 0:03:00]} 6. c3 {[%clk 0:02:43]}  g5 {[%clk 0:03:00]} 7. a4 {[%clk 0:02:41]}  Bg7 {[%clk 0:03:01]} 8. a5 {[%clk 0:02:37]}  a6 {[%clk 0:03:01]} 9. Re1 {[%clk 0:02:29]}  O-O {[%clk 0:03:01]} 10. Nbd2 {[%clk 0:02:22]}  Ne7 {[%clk 0:02:57]} 11. Nf1 {[%clk 0:02:19]}  c6 {[%clk 0:02:55]} 12. Ng3 {[%clk 0:02:13]}  Ng6 {[%clk 0:02:53]} 13. Bb3 {[%clk 0:02:10]}  Be6 {[%clk 0:02:36]} 14. d4 {[%clk 0:02:06]}  exd4 {[%clk 0:02:12]} 15. cxd4 {[%clk 0:02:04]}  d5 {[%clk 0:02:11]} 16. e5 {[%clk 0:02:02]}  Ne4 {[%clk 0:01:47]} 17. Nxe4 {[%clk 0:01:55]}  dxe4 {[%clk 0:01:48]} 18. Rxe4 {[%clk 0:01:54]}  Bf5 {[%clk 0:01:35]} 19. Re1 {[%clk 0:01:54]}  g4 {[%clk 0:01:35]} 20. Nd2 {[%clk 0:01:49]}  Qxd4 {[%clk 0:01:35]} 21. Ra4 {[%clk 0:01:42]}  Qd7 {[%clk 0:01:35]} 22. Nf1 {[%clk 0:00:52]}  Qxd1 {[%clk 0:01:22]} 23. Rxd1 {[%clk 0:00:52]}  Nxe5 {[%clk 0:01:07]} 24. Rb4 {[%clk 0:00:52]}  Nd3 {[%clk 0:00:57]} 25. Rxb7 {[%clk 0:00:49]}  Nc5 {[%clk 0:00:57]} 26. Ne3 {[%clk 0:00:38]}  Nxb7 {[%clk 0:00:51]} 27. Nxf5 {[%clk 0:00:38]}  Nxa5 {[%clk 0:00:42]} 28. Ba2 {[%clk 0:00:37]}  Rad8 {[%clk 0:00:38]} 29. Re1 {[%clk 0:00:37]}  Rfe8 {[%clk 0:00:35]} 30. Be3 {[%clk 0:00:37]}  h5 {[%clk 0:00:26]} 31. h4 {[%clk 0:00:28]}  c5 {[%clk 0:00:21]} 32. Rc1 {[%clk 0:00:26]}  Nb7 {[%clk 0:00:17]} 33. Bc4 {[%clk 0:00:17]}  Nd6 {[%clk 0:00:12]} 34. Nxd6 {[%clk 0:00:16]}  Rxd6 {[%clk 0:00:13]} 35. Bxc5 {[%clk 0:00:12]}  Bxb2 {[%clk 0:00:09]} 36. Rb1 {[%clk 0:00:07]}  Rc6 {[%clk 0:00:10]} 37. Rxb2 {[%clk 0:00:03]}  Rxc5 {[%clk 0:00:10]} 38. Bxa6 {[%clk 0:00:04]}  Kg7 {[%clk 0:00:10]} 39. Kh2 {[%clk 0:00:03]}  Re1 {[%clk 0:00:09]} 40. Bb7 {[%clk 0:00:02]}  Rc3 {[%clk 0:00:05]} 41. Ba8 {[%clk 0:00:02]}  Rcc1 {[%clk 0:00:04]} 42. Bb7 {[%clk 0:00:02]}  Rh1+ {[%clk 0:00:02]} 43. Kg3 {[%clk 0:00:02]}  Rc3+ {[%clk 0:00:02]} 44. f3 {[%clk 0:00:02]}  gxf3 {[%clk 0:00:01]} 45. Bxf3 {[%clk 0:00:01]}  Rc4 {[%clk 0:00:02]} 46. Re2 {[%clk 0:00:00]}  Rhxh4 {[%clk 0:00:02]} 0-1


[Site "https://www.chess.com"]

[Event "Titled Tuesday Blitz July 18 Late 2023"]
[White "Rostomyan, Mikayel"]
[Black "Philippe, Guillaume"]
[WhiteFideId "13313754"]
[BlackFideId "36048763"]
[WhiteElo "2624"]
[BlackElo "2530"]
[Result "0-1"]
[Round "7"]
[TimeControl "180+2"]
[Date "2023.07.18"]
[WhiteClock "0:00:36"]
[BlackClock "0:00:57"]
[Board "48"]

1. d4 {[%clk 0:03:00]}  Nf6 {[%clk 0:02:59]} 2. Nf3 {[%clk 0:03:00]}  e6 {[%clk 0:03:00]} 3. c4 {[%clk 0:03:00]}  d5 {[%clk 0:02:54]} 4. g3 {[%clk 0:02:59]}  dxc4 {[%clk 0:02:52]} 5. Bg2 {[%clk 0:02:58]}  Nbd7 {[%clk 0:02:50]} 6. Qa4 {[%clk 0:02:54]}  a6 {[%clk 0:02:46]} 7. Nc3 {[%clk 0:02:53]}  Rb8 {[%clk 0:02:43]} 8. Qxc4 {[%clk 0:02:51]}  b5 {[%clk 0:02:43]} 9. Qd3 {[%clk 0:02:51]}  Bb7 {[%clk 0:02:40]} 10. O-O {[%clk 0:02:51]}  c5 {[%clk 0:02:35]} 11. dxc5 {[%clk 0:02:49]}  Bxc5 {[%clk 0:02:35]} 12. Bf4 {[%clk 0:02:49]}  Rc8 {[%clk 0:02:31]} 13. Bd6 {[%clk 0:02:48]}  Qb6 {[%clk 0:02:28]} 14. Rad1 {[%clk 0:02:44]}  Qxd6 {[%clk 0:02:23]} 15. Qxd6 {[%clk 0:02:45]}  Bxd6 {[%clk 0:02:24]} 16. Rxd6 {[%clk 0:02:46]}  Ke7 {[%clk 0:02:24]} 17. Rfd1 {[%clk 0:02:43]}  Rhd8 {[%clk 0:02:19]} 18. a3 {[%clk 0:02:29]}  Nd5 {[%clk 0:02:05]} 19. Nxd5+ {[%clk 0:02:11]}  exd5 {[%clk 0:02:04]} 20. Rxd7+ {[%clk 0:02:06]}  Rxd7 {[%clk 0:02:02]} 21. Nd4 {[%clk 0:02:07]}  Rdc7 {[%clk 0:01:57]} 22. Rd2 {[%clk 0:01:52]}  Rc1+ {[%clk 0:01:55]} 23. Bf1 {[%clk 0:01:51]}  Kf6 {[%clk 0:01:52]} 24. f3 {[%clk 0:01:48]}  g6 {[%clk 0:01:50]} 25. Kf2 {[%clk 0:01:48]}  Rb1 {[%clk 0:01:44]} 26. Bh3 {[%clk 0:01:46]}  Rc4 {[%clk 0:01:41]} 27. f4 {[%clk 0:01:27]}  b4 {[%clk 0:01:38]} 28. b3 {[%clk 0:01:19]}  Rxd4 {[%clk 0:01:34]} 29. Rxd4 {[%clk 0:01:19]}  bxa3 {[%clk 0:01:35]} 30. Ra4 {[%clk 0:01:18]}  Rxb3 {[%clk 0:01:31]} 31. Ra5 {[%clk 0:01:11]}  d4 {[%clk 0:01:20]} 32. Ra4 {[%clk 0:01:03]}  Ke7 {[%clk 0:01:08]} 33. Rxd4 {[%clk 0:01:00]}  Bc6 {[%clk 0:00:59]} 34. Bg2 {[%clk 0:00:47]}  a2 {[%clk 0:00:58]} 35. Bxc6 {[%clk 0:00:36]}  a1=Q {[%clk 0:00:57]} 0-1


[Site "https://www.chess.com"]

[Event "Titled Tuesday Blitz July 18 Late 2023"]
[White "Van Foreest, Machteld"]
[Black "Arabidze, Meri"]
[WhiteFideId "1051563"]
[BlackFideId "13604040"]
[WhiteElo "2509"]
[BlackElo "2621"]
[Result "1-0"]
[Round "7"]
[TimeControl "180+2"]
[Date "2023.07.18"]
[WhiteClock "0:00:12"]
[BlackClock "0:00:00"]
[Board "49"]

1. e4 {[%clk 0:03:00]}  c5 {[%clk 0:02:59]} 2. Nf3 {[%clk 0:03:00]}  e6 {[%clk 0:03:00]} 3. d4 {[%clk 0:03:00]}  cxd4 {[%clk 0:03:01]} 4. Nxd4 {[%clk 0:03:01]}  Nc6 {[%clk 0:03:01]} 5. Nc3 {[%clk 0:03:01]}  Qc7 {[%clk 0:03:01]} 6. a3 {[%clk 0:03:01]}  a6 {[%clk 0:03:01]} 7. Be3 {[%clk 0:02:59]}  b5 {[%clk 0:03:00]} 8. Nxc6 {[%clk 0:02:59]}  Qxc6 {[%clk 0:03:01]} 9. Be2 {[%clk 0:02:54]}  Bb7 {[%clk 0:03:01]} 10. O-O {[%clk 0:02:54]}  Rc8 {[%clk 0:02:59]} 11. Bd4 {[%clk 0:02:49]}  Nf6 {[%clk 0:02:55]} 12. Bf3 {[%clk 0:02:46]}  Qc7 {[%clk 0:02:22]} 13. e5 {[%clk 0:02:35]}  Nd5 {[%clk 0:02:22]} 14. Nxd5 {[%clk 0:02:27]}  exd5 {[%clk 0:02:22]} 15. c3 {[%clk 0:02:20]}  Be7 {[%clk 0:02:18]} 16. e6 {[%clk 0:02:17]}  dxe6 {[%clk 0:02:11]} 17. Bxg7 {[%clk 0:02:15]}  Rg8 {[%clk 0:02:12]} 18. Qd4 {[%clk 0:02:05]}  Qc4 {[%clk 0:01:54]} 19. Qe5 {[%clk 0:01:45]}  Qc7 {[%clk 0:01:45]} 20. Qd4 {[%clk 0:01:38]}  Qc5 {[%clk 0:01:45]} 21. Qe5 {[%clk 0:01:27]}  Qd6 {[%clk 0:01:45]} 22. Qd4 {[%clk 0:01:25]}  Rc4 {[%clk 0:01:45]} 23. Qa7 {[%clk 0:01:15]}  Bc8 {[%clk 0:01:06]} 24. Bd4 {[%clk 0:01:11]}  e5 {[%clk 0:01:03]} 25. Be3 {[%clk 0:00:38]}  e4 {[%clk 0:01:02]} 26. Be2 {[%clk 0:00:37]}  Rc7 {[%clk 0:00:56]} 27. Qb8 {[%clk 0:00:37]}  Rc6 {[%clk 0:00:31]} 28. Qxd6 {[%clk 0:00:27]}  Rxd6 {[%clk 0:00:26]} 29. Rfd1 {[%clk 0:00:27]}  Rdg6 {[%clk 0:00:21]} 30. g3 {[%clk 0:00:27]}  Be6 {[%clk 0:00:20]} 31. a4 {[%clk 0:00:27]}  b4 {[%clk 0:00:20]} 32. cxb4 {[%clk 0:00:21]}  Bxb4 {[%clk 0:00:19]} 33. Bxa6 {[%clk 0:00:21]}  h5 {[%clk 0:00:10]} 34. Bb5+ {[%clk 0:00:20]}  Kf8 {[%clk 0:00:09]} 35. a5 {[%clk 0:00:21]}  Kg7 {[%clk 0:00:04]} 36. a6 {[%clk 0:00:21]}  Bc8 {[%clk 0:00:02]} 37. a7 {[%clk 0:00:21]}  Bb7 {[%clk 0:00:01]} 38. Rd4 {[%clk 0:00:14]}  Be7 {[%clk 0:00:01]} 39. Rda4 {[%clk 0:00:13]}  Ba8 {[%clk 0:00:01]} 40. Ra6 {[%clk 0:00:14]}  Kh7 {[%clk 0:00:01]} 41. Rxg6 {[%clk 0:00:13]}  fxg6 {[%clk 0:00:00]} 42. Ra6 {[%clk 0:00:12]} 1-0


[Site "https://www.chess.com"]

[Event "Titled Tuesday Blitz July 18 Late 2023"]
[White "Vovk, Orest"]
[Black "Skvortsov, Andrei"]
[WhiteFideId "14113490"]
[BlackFideId "24108600"]
[WhiteElo "2567"]
[BlackElo "2789"]
[Result "1-0"]
[Round "7"]
[TimeControl "180+2"]
[Date "2023.07.18"]
[WhiteClock "0:01:23"]
[BlackClock "0:01:17"]
[Board "54"]

1. g4 {[%clk 0:02:53]}  d5 {[%clk 0:02:51]} 2. h3 {[%clk 0:02:53]}  c6 {[%clk 0:02:50]} 3. Bg2 {[%clk 0:02:54]}  e5 {[%clk 0:02:50]} 4. d4 {[%clk 0:02:53]}  exd4 {[%clk 0:02:45]} 5. Qxd4 {[%clk 0:02:53]}  Be7 {[%clk 0:02:36]} 6. Nc3 {[%clk 0:02:50]}  Bf6 {[%clk 0:02:35]} 7. Qe3+ {[%clk 0:02:49]}  Qe7 {[%clk 0:02:35]} 8. g5 {[%clk 0:02:46]}  Qxe3 {[%clk 0:02:33]} 9. Bxe3 {[%clk 0:02:47]}  Be5 {[%clk 0:02:29]} 10. Nf3 {[%clk 0:02:45]}  Bc7 {[%clk 0:02:28]} 11. Bd4 {[%clk 0:02:43]}  Kf8 {[%clk 0:02:27]} 12. e4 {[%clk 0:02:42]}  dxe4 {[%clk 0:02:26]} 13. Nxe4 {[%clk 0:02:41]}  Ne7 {[%clk 0:02:24]} 14. O-O-O {[%clk 0:02:40]}  Na6 {[%clk 0:02:20]} 15. Be5 {[%clk 0:02:35]}  Bf5 {[%clk 0:02:17]} 16. Bxc7 {[%clk 0:02:30]}  Nxc7 {[%clk 0:02:13]} 17. Nd6 {[%clk 0:02:25]}  b6 {[%clk 0:02:05]} 18. Nxf5 {[%clk 0:02:24]}  Nxf5 {[%clk 0:02:04]} 19. Rd7 {[%clk 0:02:24]}  Nd5 {[%clk 0:01:54]} 20. Ne5 {[%clk 0:02:20]}  Nde7 {[%clk 0:01:32]} 21. Nxc6 {[%clk 0:01:52]}  Nxc6 {[%clk 0:01:30]} 22. Bxc6 {[%clk 0:01:51]}  Rc8 {[%clk 0:01:29]} 23. Bd5 {[%clk 0:01:48]}  Ne7 {[%clk 0:01:29]} 24. Bb3 {[%clk 0:01:40]}  a5 {[%clk 0:01:26]} 25. Re1 {[%clk 0:01:35]}  Re8 {[%clk 0:01:24]} 26. Rb7 {[%clk 0:01:28]}  h6 {[%clk 0:01:17]} 27. Ba4 {[%clk 0:01:23]} 1-0


[Site "https://www.chess.com"]

[Event "Titled Tuesday Blitz July 18 Late 2023"]
[White "Oro, Faustino"]
[Black "Hajiyev, Kanan"]
[WhiteFideId "20000197"]
[BlackFideId "13404148"]
[WhiteElo "2768"]
[BlackElo "2554"]
[Result "0-1"]
[Round "7"]
[TimeControl "180+2"]
[Date "2023.07.18"]
[WhiteClock "0:00:00"]
[BlackClock "0:00:03"]
[Board "55"]

1. e4 {[%clk 0:03:00]}  c6 {[%clk 0:03:00]} 2. Nf3 {[%clk 0:02:59]}  d5 {[%clk 0:03:01]} 3. Nc3 {[%clk 0:02:59]}  a6 {[%clk 0:03:01]} 4. d4 {[%clk 0:02:57]}  Bg4 {[%clk 0:03:01]} 5. h3 {[%clk 0:02:55]}  Bh5 {[%clk 0:03:01]} 6. Be2 {[%clk 0:02:51]}  e6 {[%clk 0:03:01]} 7. O-O {[%clk 0:02:43]}  Nf6 {[%clk 0:03:00]} 8. e5 {[%clk 0:02:40]}  Nfd7 {[%clk 0:03:00]} 9. Nb1 {[%clk 0:02:38]}  c5 {[%clk 0:03:00]} 10. c3 {[%clk 0:02:39]}  Nc6 {[%clk 0:03:01]} 11. Nbd2 {[%clk 0:02:39]}  cxd4 {[%clk 0:02:59]} 12. cxd4 {[%clk 0:02:36]}  Qb6 {[%clk 0:02:57]} 13. Nb3 {[%clk 0:02:34]}  a5 {[%clk 0:02:57]} 14. a4 {[%clk 0:02:22]}  Be7 {[%clk 0:02:42]} 15. Bb5 {[%clk 0:02:15]}  O-O {[%clk 0:02:39]} 16. Bf4 {[%clk 0:02:04]}  Rfc8 {[%clk 0:02:27]} 17. Rc1 {[%clk 0:01:55]}  Nf8 {[%clk 0:02:27]} 18. Be3 {[%clk 0:01:53]}  Nb4 {[%clk 0:02:22]} 19. Nc5 {[%clk 0:01:33]}  Bxc5 {[%clk 0:01:54]} 20. dxc5 {[%clk 0:01:31]}  Qc7 {[%clk 0:01:54]} 21. g4 {[%clk 0:01:28]}  Bg6 {[%clk 0:01:54]} 22. Bf4 {[%clk 0:01:22]}  Nd7 {[%clk 0:01:53]} 23. Bxd7 {[%clk 0:00:58]}  Qxd7 {[%clk 0:01:53]} 24. Be3 {[%clk 0:00:56]}  Nd3 {[%clk 0:01:27]} 25. Rc3 {[%clk 0:00:54]}  Nxb2 {[%clk 0:01:24]} 26. Qd4 {[%clk 0:00:45]}  Qxa4 {[%clk 0:01:16]} 27. Nd2 {[%clk 0:00:32]}  Qxd4 {[%clk 0:01:12]} 28. Bxd4 {[%clk 0:00:33]}  Nc4 {[%clk 0:00:59]} 29. Nf3 {[%clk 0:00:22]}  h6 {[%clk 0:00:55]} 30. Ra1 {[%clk 0:00:21]}  a4 {[%clk 0:00:53]} 31. Kf1 {[%clk 0:00:17]}  Be4 {[%clk 0:00:52]} 32. Ne1 {[%clk 0:00:15]}  Nd2+ {[%clk 0:00:47]} 33. Ke2 {[%clk 0:00:15]}  Nb3 {[%clk 0:00:48]} 34. Rd1 {[%clk 0:00:10]}  Nxd4+ {[%clk 0:00:44]} 35. Rxd4 {[%clk 0:00:11]}  a3 {[%clk 0:00:42]} 36. Rd1 {[%clk 0:00:08]}  a2 {[%clk 0:00:40]} 37. Ra1 {[%clk 0:00:09]}  Ra5 {[%clk 0:00:38]} 38. Nf3 {[%clk 0:00:07]}  Bb1 {[%clk 0:00:26]} 39. Nd2 {[%clk 0:00:06]}  Rb5 {[%clk 0:00:13]} 40. Nb3 {[%clk 0:00:03]}  Kf8 {[%clk 0:00:07]} 41. Kd1 {[%clk 0:00:02]}  f6 {[%clk 0:00:06]} 42. exf6 {[%clk 0:00:01]}  gxf6 {[%clk 0:00:06]} 43. Kc1 {[%clk 0:00:02]}  Kf7 {[%clk 0:00:06]} 44. Kb2 {[%clk 0:00:03]}  d4 {[%clk 0:00:04]} 45. Rc4 {[%clk 0:00:02]}  e5 {[%clk 0:00:03]} 46. Ka3 {[%clk 0:00:01]}  Ra8+ {[%clk 0:00:02]} 47. Ra4 {[%clk 0:00:01]}  Rc8 {[%clk 0:00:03]} 48. Ra7 {[%clk 0:00:01]}  Ke6 {[%clk 0:00:02]} 49. Nd2 {[%clk 0:00:01]}  Kd5 {[%clk 0:00:03]} 50. Nb3 {[%clk 0:00:01]}  Rxb3+ {[%clk 0:00:02]} 51. Kxb3 {[%clk 0:00:02]}  Rxc5 {[%clk 0:00:03]} 52. Kb2 {[%clk 0:00:02]}  Rc2+ {[%clk 0:00:04]} 53. Ka3 {[%clk 0:00:02]}  Rxf2 {[%clk 0:00:04]} 54. Rxb7 {[%clk 0:00:03]}  d3 {[%clk 0:00:05]} 55. Rd7+ {[%clk 0:00:03]}  Ke4 {[%clk 0:00:06]} 56. Kb4 {[%clk 0:00:03]}  d2 {[%clk 0:00:06]} 57. Kc3 {[%clk 0:00:03]}  Ke3 {[%clk 0:00:06]} 58. Rd6 {[%clk 0:00:04]}  e4 {[%clk 0:00:05]} 59. Rd5 {[%clk 0:00:04]}  Bd3 {[%clk 0:00:05]} 60. Rd1 {[%clk 0:00:02]}  Bb1 {[%clk 0:00:04]} 61. Ra5 {[%clk 0:00:01]}  Re2 {[%clk 0:00:04]} 62. Ra3 {[%clk 0:00:01]}  Kf2 {[%clk 0:00:03]} 63. Kd4 {[%clk 0:00:00]}  e3 {[%clk 0:00:03]} 0-1


[Site "https://www.chess.com"]

[Event "Titled Tuesday Blitz July 18 Late 2023"]
[White "Dimitrov, Atanas"]
[Black "D`Arruda, Ricardo D."]
[WhiteFideId "2901315"]
[BlackFideId "100692"]
[WhiteElo "2699"]
[BlackElo "2521"]
[Result "1-0"]
[Round "7"]
[TimeControl "180+2"]
[Date "2023.07.18"]
[WhiteClock "0:02:17"]
[BlackClock "0:01:42"]
[Board "59"]

1. Nf3 {[%clk 0:03:00]}  d5 {[%clk 0:02:59]} 2. e3 {[%clk 0:03:00]}  Nf6 {[%clk 0:02:58]} 3. c4 {[%clk 0:03:01]}  c6 {[%clk 0:02:58]} 4. Nc3 {[%clk 0:03:01]}  g6 {[%clk 0:02:57]} 5. b3 {[%clk 0:03:02]}  Bg7 {[%clk 0:02:57]} 6. Bb2 {[%clk 0:03:02]}  O-O {[%clk 0:02:55]} 7. Be2 {[%clk 0:03:03]}  Ne4 {[%clk 0:02:54]} 8. Rc1 {[%clk 0:03:02]}  Nxc3 {[%clk 0:02:53]} 9. Bxc3 {[%clk 0:03:03]}  Bxc3 {[%clk 0:02:52]} 10. Rxc3 {[%clk 0:03:03]}  Na6 {[%clk 0:02:48]} 11. O-O {[%clk 0:03:03]}  Nc5 {[%clk 0:02:48]} 12. cxd5 {[%clk 0:03:01]}  Qxd5 {[%clk 0:02:46]} 13. d4 {[%clk 0:02:59]}  Ne4 {[%clk 0:02:44]} 14. Rc1 {[%clk 0:02:58]}  Qa5 {[%clk 0:02:39]} 15. Qc2 {[%clk 0:02:51]}  Nd6 {[%clk 0:02:38]} 16. Qb2 {[%clk 0:02:49]}  Bg4 {[%clk 0:02:35]} 17. Ne5 {[%clk 0:02:46]}  Bxe2 {[%clk 0:02:34]} 18. Qxe2 {[%clk 0:02:47]}  Rfd8 {[%clk 0:02:32]} 19. h3 {[%clk 0:02:39]}  Rac8 {[%clk 0:02:30]} 20. Rfd1 {[%clk 0:02:36]}  Qd5 {[%clk 0:02:28]} 21. Rc5 {[%clk 0:02:32]}  Qe6 {[%clk 0:02:27]} 22. b4 {[%clk 0:02:25]}  Ne4 {[%clk 0:02:24]} 23. Rc2 {[%clk 0:02:23]}  f6 {[%clk 0:02:22]} 24. Nd3 {[%clk 0:02:21]}  b6 {[%clk 0:02:20]} 25. Rdc1 {[%clk 0:02:21]}  Rc7 {[%clk 0:02:12]} 26. Nf4 {[%clk 0:02:19]}  Qd6 {[%clk 0:02:09]} 27. Qc4+ {[%clk 0:02:17]}  Kh8 {[%clk 0:01:42]} 28. Ne6 {[%clk 0:02:17]} 1-0


[Site "https://www.chess.com"]